Cogmind - Beta 16 @@@ ROGUE MODE // 2025.10.24 @ 14:01:53 Player: nowtakenusername Result: Destroyed by 1W-WEV(l) with Ripper Performance ------------- Evolutions (3) 1500 Regions Visited (6) 1200 Robots Destroyed (92) 460 Value Destroyed (2654) 2654 Prototype IDs (2) 40 Alien Tech Used (0) 0 Bonus (0) 0 TOTAL SCORE: 5854 Bonus ------- None Cogmind --------- Core Integrity 0/700 Matter 300/300 Energy 100/100 System Corruption 0% Temperature Cool (0) Movement Core (100) Ox1 Location -7/Lower Caves Parts ------- > --- POWER (2) -------- (None) > --- PROPULSION (3) --- (None) > --- UTILITY (6) ------ Improved Propulsion Shielding > --- WEAPON (2) ------- Heavy Flail > --- INVENTORY (5) ---- Micro Nuclear Core Micro Nuclear Core Core Analyzer Microactuators Missile Launcher Peak State ------------ > --- POWER ------------ Micro Nuclear Core Micro Nuclear Core > --- PROPULSION ------- Gravmag System Gravmag System Gravmag System > --- UTILITY ---------- Medium Storage Unit Improved Melee Analysis Suite Microactuators Reaction Control System Improved Propulsion Shielding Improved Light Armor Plating > --- WEAPON ----------- High-powered Shotgun Heavy Flail > --- INVENTORY -------- Micro Nuclear Core Improved Hover Unit Gravmag System Improved Heat Sink Core Analyzer Microactuators Improved Propulsion Shielding System Restoration Module Rocket Launcher Chainsword [Rating: 47] Favorites ----------- Power Micro Nuclear Core Engine Ion Engine Power Core Micro Nuclear Core Propulsion Aluminum Leg Treads Light Treads Leg Aluminum Leg Wheel Compact Wheel Hover Unit Gravmag System Utility Medium Storage Unit Device Improved Heat Sink Storage Medium Storage Unit Processor Targeting Computer Protection Improved Light Armor Plating Weapon Heavy Assault Rifle Energy Gun Particle Gun Ballistic Gun Heavy Assault Rifle Launcher Mini Grenade Launcher Special Weapon Mining Laser Impact Weapon Heavy Flail Slashing Weapon Chainsword Build | -11 -10 -10 -9 -8 -7 -7 ------- Run | Yrd Mat Min Mat Mat Fac Low Slots Evolved 6 | . . . 2 2 2 . Power 1 | . . . . . 1 . Propulsion 1 | . . . 1 . . . Utility 4 | . . . 1 2 1 . Weapon . | . . . . . . . Parts Attached 91 | 6 11 9 9 10 42 4 Power 15 | 1 3 1 2 . 8 . Engine 9 | 1 3 1 2 . 2 . Core 6 | . . . . . 6 . Reactor . | . . . . . . . Propulsion 29 | 2 3 4 3 4 11 2 Treads 2 | . . . . . 2 . Leg 21 | 2 3 4 3 4 5 . Wheel 1 | . . . . . 1 . Hover 5 | . . . . . 3 2 Flight . | . . . . . . . Utility 26 | 1 2 1 . 5 15 2 Device 11 | . 1 . . 1 8 1 Storage 3 | 1 1 . . 1 . . Processor 6 | . . 1 . 2 3 . Hackware . | . . . . . . . Protection 6 | . . . . 1 4 1 Artifact . | . . . . . . . Weapon 21 | 2 3 3 4 1 8 . Energy Gun 3 | . . 2 . . 1 . Energy Cannon . | . . . . . . . Ballistic Gun 13 | 2 2 . 3 1 5 . Ballistic Cannon . | . . . . . . . Launcher 2 | . 1 . 1 . . . Special Weapon 1 | . . 1 . . . . Impact Weapon 1 | . . . . . 1 . Slashing Weapon 1 | . . . . . 1 . Piercing Weapon . | . . . . . . . Special Melee Weapon . | . . . . . . . Unidentified Prototypes . | . . . . . . . Parts Lost 38 | . 1 1 5 5 16 10 Power 6 | . . 1 1 1 2 1 Propulsion 14 | . . . 3 2 6 3 Utility 11 | . . . . 2 3 6 Weapon 7 | . 1 . 1 . 5 . Highest Loss Streak 7 | . 1 1 5 2 3 7 To Critical Strikes 2 | . . . 1 1 . . Average Backups 9 | 4 9 9 9 9 9 8 Power . | . 1 . . 1 . 1 Propulsion 1 | 2 1 3 2 1 1 . Utility 3 | . 3 3 3 2 4 4 Weapon 3 | . 2 2 3 4 3 2 Tool/Special . | . . . . . . . Unused Backups 24 | . 11 . 1 2 6 4 Power 3 | . 2 . . . . 1 Propulsion 4 | . 4 . . . . . Utility 9 | . 3 . . 1 3 2 Weapon 8 | . 2 . 1 1 3 1 Tool/Special . | . . . . . . . Average Slot Usage (%) 94 | . 99 99 97 96 92 67 Engine 7 | . 14 13 10 8 1 . Core 4 | . . . . . 10 8 Leg 21 | . 28 28 32 26 13 . Hover 2 | . . . . . 6 11 Device 12 | . 13 13 10 10 13 13 Storage 9 | . 14 14 11 9 7 7 Processor 11 | . . . 11 19 15 7 Protection 3 | . . . . 3 7 7 Energy Gun 1 | . . 13 4 . . . Ballistic Gun 15 | . 27 12 16 18 10 1 Peak Build Rating 47 | 6 9 10 13 20 47 47 Average Rating 20 | 5 7 8 12 17 33 31 On Entrance 14 | . 6 8 8 13 18 47 Avg Prop Armor Cover (%) 9 | . . . . . 9 . Naked Turns . | . . . . . . . Heaviest Build 36 | 13 19 22 24 27 36 36 Greatest Support 35 | 20 20 20 30 30 35 27 Greatest Overweight (x) 11 | . . 1 1 1 11 3 Average Overweight (x) . | . . . . . . 1 Largest Inventory Capacity 10 | 8 10 10 10 10 10 10 Average Capacity 9 | 7 9 10 10 10 10 9 Most Carried 10 | 6 10 10 10 10 10 10 Average Carried 9 | 4 9 9 9 9 9 8 Final Capacity 10 | 8 10 10 10 10 10 5 Final Carried 10 | 6 10 10 10 10 10 5 Class Distribution -------------------- 59% | Scavenger-Mutant 40% | Mutant Dominant Class ---------------- Mutant | -10/Materials Mutant | -10/Mines Scavenger-Mutant | -9/Materials Scavenger-Mutant | -8/Materials Scavenger-Mutant | -7/Factory Mutant | -7/Lower Caves Resources | -11 -10 -10 -9 -8 -7 -7 ----------- Run | Yrd Mat Min Mat Mat Fac Low Matter Collected 2441 | 224 143 183 459 405 934 93 Remotely . | . . . . . . . Salvage Created 3070 | 30 233 153 561 530 1383 180 Parts 178 | 1 17 6 37 29 84 4 Haulers Intercepted 1 | . . . . . 1 . Recyclers Shooed 2 | . . . . 1 1 . Parts Field Recycled . | . . . . . . . Retrieved Matter . | . . . . . . . Parts Self-Destructed 3 | . . . . . . 3 Prevented . | . . . . . . . Parts Restored . | . . . . . . . Kills | -11 -10 -10 -9 -8 -7 -7 ------- Run | Yrd Mat Min Mat Mat Fac Low Combat Hostiles Destroyed 71 | . 10 4 14 11 26 6 Melee 8 | . . . . . 6 2 Guns 50 | . 5 4 11 11 15 4 AOE 13 | . 5 . 3 . 5 . Classes Destroyed 14 | 1 3 . 3 . 6 1 Worker 5 | . . . 1 . 4 . Builder 1 | . . . . . 1 . Tunneler 3 | 2 . . 1 . . . Hauler 1 | . . . . . 1 . Recycler 3 | . . . 1 1 1 . Mechanic 1 | . . . . . 1 . Watcher 7 | . 1 . 2 2 2 . Swarmer 29 | . 6 . 6 6 7 4 Grunt 25 | . 4 4 4 4 9 . Brawler 1 | . . . . . 1 . Sentry 9 | . . . 4 1 4 . Hunter 1 | . . . . . 1 . Programmer 4 | . . . . . 4 . Butcher 2 | . . . . . . 2 Best Kill Streak 8 | 1 6 2 5 4 8 4 Combat Bots Only 7 | . 6 2 4 4 7 4 Max Kills in Single Turn 3 | 1 2 1 2 2 3 1 Gunslinging 1 | . . . 1 1 . . Exploded 3 | . 2 . 2 . 3 . Melee 1 | . . . . . 1 1 Uniques/NPCs Destroyed . | . . . . . . . Combat | -11 -10 -10 -9 -8 -7 -7 -------- Run | Yrd Mat Min Mat Mat Fac Low Hostile Shots Fired 664 | . 69 15 113 65 327 75 Missed 210 | . 15 3 34 16 120 22 Hits 454 | . 54 12 79 49 207 53 Melee 11 | . . . . . . 11 Projectile 443 | . 54 12 79 49 207 42 AOE 1 | . . 1 . . . . Critical Strikes 22 | . 1 3 3 4 4 7 Actively Blocked 2 | . . . . . 1 1 Damage Taken 5535 | . 591 184 950 680 2130 1000 Core 1154 | . 99 26 206 99 301 423 Absorbed by Shields 286 | . . . . . 286 . Redirected to Shielding 102 | . . . . . 33 69 Regen/Repaired (Parts) 78 | . . . . 78 . . Core Remaining (%) 70 | 100 . 50 48 82 . . Volleys Fired 261 | 12 43 12 54 38 89 13 Largest 2 | 2 2 2 2 2 2 1 Hottest 130 | 40 40 130 88 46 46 25 Shots Fired 439 | 24 82 23 82 76 139 13 Gun 428 | 24 78 22 79 76 136 13 Cannon . | . . . . . . . Launcher 10 | . 4 . 3 . 3 . Special 1 | . . 1 . . . . Kinetic 400 | 24 78 4 69 76 136 13 Thermal 29 | . . 19 10 . . . Explosive 10 | . 4 . 3 . 3 . Electromagnetic . | . . . . . . . Robot Hit Streak 18 | 4 8 4 7 16 18 4 Robot Miss Streak 5 | 2 5 3 3 5 2 3 Penetration Max . | . . . . . . . Secondary Targets 4 | . . . 1 2 1 . Max Gunslinging Chain 1 | . . . 1 1 1 . Shots Hit Robots 315 | 13 42 12 50 49 122 27 Core Hits 153 | 4 16 6 29 24 64 10 Critical Kills . | . . . . . . . Critical Parts Destroyed 3 | . 1 . . 1 1 . Critical Strikes 6 | . 1 . 1 1 3 . Burn 1 | . . . 1 . . . Destroy 2 | . 1 . . 1 . . Smash 1 | . . . . . 1 . Sever 2 | . . . . . 2 . Melee Attacks 64 | . . . . . 43 21 Impact 28 | . . . . . 10 18 Slashing 36 | . . . . . 33 3 Piercing . | . . . . . . . Sneak Attacks 5 | . . . . . 4 1 Combat Hostiles 1 | . . . . . . 1 Follow-up Attacks . | . . . . . . . Damage Inflicted 7269 | 137 849 187 992 747 3420 937 Guns 4098 | 137 462 186 811 747 1544 211 Cannons . | . . . . . . . Explosions 1093 | . 380 . 181 . 532 . Melee 2061 | . . . . . 1335 726 Ramming 17 | . 7 1 . . 9 . Kinetic 3803 | 137 462 7 695 747 1544 211 Thermal 295 | . . 179 116 . . . Explosive 1093 | . 380 . 181 . 532 . Electromagnetic . | . . . . . . . Impact 884 | . . . . . 299 585 Slashing 1177 | . . . . . 1036 141 Piercing . | . . . . . . . Highest Corruption 3 | . . . . . 3 3 Average Corruption 1 | . . . . . 1 2 Corruption Purged 3 | . . . . . . 3 Corruption Blocked . | . . . . . . . Effects 12 | . . . . . 10 2 Message Errors 3 | . . . . . 2 1 Matter Fused 4 | . . . . . 4 . Heat Flow Errors 1 | . . . . . 1 . Energy Discharges 1 | . . . . . 1 . Parts Rejected 1 | . . . . . . 1 Data Loss (minor) 1 | . . . . . 1 . Alerts 1 | . . . . . 1 . Overload Shots . | . . . . . . . Overflow Damage 372 | . 40 . 41 . 199 92 Projectiles . | . . . . . . . Explosions 81 | . 40 . 41 . . . Melee 291 | . . . . . 199 92 Knockbacks 5 | . . . . . 1 4 Impact 5 | . . . . . 1 4 Kinetic . | . . . . . . . Secondary . | . . . . . . . Self-Inflicted Damage 30 | . 30 . . . . . Shots 1 | . 1 . . . . . Rammed 1 | . . . . . 1 . Targets Rammed 5 | . 1 1 . . 3 . Kicked 4 | . 1 1 . . 2 . Crushed . | . . . . . . . Highest Temperature 449 | . 36 449 237 3 98 4 Average Temperature 113 | . 10 163 103 3 46 3 Received Heat Transfer 1582 | . 153 135 399 360 427 108 Effects 2 | . . 1 1 . . . Interference 1 | . . . 1 . . . Short Circuit 1 | . . 1 . . . . Siege Activations . | . . . . . . . Martial Activations . | . . . . . . . Shielding Activations . | . . . . . . . Robots Disrupted . | . . . . . . . Combat Hostiles . | . . . . . . . Robots Corrupted . | . . . . . . . Combat Hostiles . | . . . . . . . Parts Fried 2 | . . . . . 2 . Impact Corruptions 6 | . . . . . 3 3 Robots Melted . | . . . . . . . Combat Hostiles . | . . . . . . . Parts Melted 2 | . . 1 1 . . . Heat Transferred 777 | . . 407 370 . . . Parts Sabotaged . | . . . . . . . Parts Stolen 3 | . . . . . . 3 Parts Stripped . | . . . . . . . Power Chain Reactions . | . . . . . . . Alert | -11 -10 -10 -9 -8 -7 -7 ------- Run | Yrd Mat Min Mat Mat Fac Low Maximum Alert Level 1 | . 1 . . . 1 . Low Security (%) 93 | 100 88 100 100 100 89 . Level 1 6 | . 11 . . . 10 . Level 2 . | . . . . . . . Level 3 . | . . . . . . . Level 4 . | . . . . . . . Level 5 . | . . . . . . . High Security . | . . . . . . . Max Security . | . . . . . . . Peak Influence 330 | 5 235 90 184 143 330 . Initial 75 | . . 75 . 45 . . Average 72 | . 39 43 101 55 99 . Influence Increases 2206 | 10 375 131 417 298 885 90 Destroy 0b10 Robot/C 1380 | . 200 80 280 220 520 80 Destroy 0b10 Robot/NC 105 | 10 5 . 25 15 50 . Destroy Leader 326 | . 42 20 74 44 136 10 Successful Hack 49 | . . . 15 3 31 . Disable Machine 15 | . 15 . . . . . Destroy Structure 91 | . 53 1 23 1 13 . Partial Spotted 15 | . . . . . 15 . Lose Combat Pursuer 225 | . 60 30 . 15 120 . Influence Decreases 2120 | 10 182 324 309 406 557 332 Entered New Map 303 | . . 118 . 63 . 122 Time Decay 1457 | 10 172 196 259 268 442 110 Lost Part 315 | . 10 10 50 30 115 100 Purge Threat 45 | . . . . 45 . . Squads Dispatched 10 | . 1 . . 2 7 . Investigation 2 | . . . . . 2 . Extermination 4 | . . . . . 4 . Reinforcement 4 | . 1 . . 2 1 . Assault . | . . . . . . . Garrison . | . . . . . . . Intercept . | . . . . . . . Searches Triggered . | . . . . . . . Construction Impeded . | . . . . . . . Haulers Reinforced 1 | . . . . . 1 . Active Scanning Responses . | . . . . . . . Cargo Convoy Interrupts . | . . . . . . . Stealth | -11 -10 -10 -9 -8 -7 -7 --------- Run | Yrd Mat Min Mat Mat Fac Low Distress Signals 7 | . 1 . 3 . 3 . Communications Jammed . | . . . . . . . Distress Signals . | . . . . . . . Times Spotted 132 | . 22 7 21 22 48 12 Peak Tracking Total 7 | . 6 2 6 5 7 5 Tactical Retreats 11 | . 3 2 . 1 5 . Traps | -11 -10 -10 -9 -8 -7 -7 ------- Run | Yrd Mat Min Mat Mat Fac Low Traps Triggered 4 | . 1 . 1 1 1 . Indirectly . | . . . . . . . Trap Hack Attempts . | . . . . . . . Triggered . | . . . . . . . Disarmed . | . . . . . . . Reprogrammed . | . . . . . . . Reused . | . . . . . . . Traps Extracted . | . . . . . . . Installed . | . . . . . . . Triggered . | . . . . . . . Machines | -11 -10 -10 -9 -8 -7 -7 ---------- Run | Yrd Mat Min Mat Mat Fac Low Machines Disabled 1 | . 1 . . . . . Max in Single Turn 1 | . 1 . . . . . Machines Repaired . | . . . . . . . Machines Dismantled . | . . . . . . . Machines Sabotaged . | . . . . . . . Overloaded Fab Kills . | . . . . . . . Hacking | -11 -10 -10 -9 -8 -7 -7 --------- Run | Yrd Mat Min Mat Mat Fac Low Machines Accessed 19 | . 3 . 5 3 8 . Terminals 10 | . 2 . 5 1 2 . Fabricators 3 | . . . . . 3 . Repair Stations 1 | . . . . 1 . . Recycling Units 2 | . 1 . . . 1 . Scanalyzers 1 | . . . . . 1 . Garrison Access 2 | . . . . 1 1 . Total Hacks 44 | . 7 . 18 5 14 . Successful 20 | . 3 . 6 3 8 . Failed 24 | . 4 . 12 2 6 . Catastrophic 2 | . . . . . 2 . Database Lockouts . | . . . . . . . Manual 9 | . . . 9 . . . Terminals 28 | . 5 . 18 2 3 . Fabricators 6 | . . . . . 6 . Repair Stations 2 | . . . . 2 . . Recycling Units 3 | . 2 . . . 1 . Scanalyzers 3 | . . . . . 3 . Garrison Access 2 | . . . . 1 1 . Terminal Hacks 8 | . 1 . 5 1 1 . Record 1 | . . . 1 . . . Robot Analysis 2 | . . . 1 . 1 . Prototype ID Bank 1 | . . . 1 . . . Alert Level 1 | . . . 1 . . . Unreport Threat 1 | . . . . 1 . . Dispatch Records 1 | . . . 1 . . . Zone Layout 1 | . 1 . . . . . Fabricator Hacks 3 | . . . . . 3 . Load Schematic 2 | . . . . . 2 . Build 1 | . . . . . 1 . Repair Station Hacks 2 | . . . . 2 . . Scan Component 1 | . . . . 1 . . Repair 1 | . . . . 1 . . Recycling Unit Hacks 3 | . 2 . . . 1 . Report Inventory 1 | . 1 . . . . . Retrieve Components 2 | . 1 . . . 1 . Scanalyzer 3 | . . . . . 3 . Insert Component 1 | . . . . . 1 . Analyze 1 | . . . . . 1 . Retrieve Study 1 | . . . . . 1 . Garrison Access Hacks . | . . . . . . . Unauthorized Hacks 1 | . . . 1 . . . Terminals 1 | . . . 1 . . . Botnet 1 | . . . 1 . . . Fabricators . | . . . . . . . Repair Stations . | . . . . . . . Recycling Units . | . . . . . . . Scanalyzers . | . . . . . . . Garrison Access . | . . . . . . . Data Cores Recovered . | . . . . . . . Used . | . . . . . . . Hacking Detections 16 | . 2 . 5 2 7 . Full Trace Events 2 | . . . . . 2 . Feedback Events . | . . . . . . . Feedback Blocked . | . . . . . . . Robot Schematics Acquired . | . . . . . . . Robots Built . | . . . . . . . Authchips . | . . . . . . . Time . | . . . . . . . Total Robot Build Rating . | . . . . . . . Part Schematics Acquired 1 | . . . . . 1 . Parts Built 2 | . . . . . 2 . Authchips . | . . . . . . . Time 84 | . . . . . 84 . Total Part Build Rating 8 | . . . . . 8 . Part Studies Acquired 1 | . . . . . 1 . Parts Repaired 1 | . . . . 1 . . Time 26 | . . . . 26 . . Parts Recycled . | . . . . . . . Recycled Matter . | . . . . . . . Retrieved Matter . | . . . . . . . Retrieved Components 10 | . 2 . . . 8 . Parts Scanalyzed 1 | . . . . . 1 . Part Schematics Acquired 1 | . . . . . 1 . Parts Damaged . | . . . . . . . Bothacking | -11 -10 -10 -9 -8 -7 -7 ------------ Run | Yrd Mat Min Mat Mat Fac Low Used RIF Installer . | . . . . . . . Robots Hacked . | . . . . . . . Non-combat . | . . . . . . . Combat . | . . . . . . . Robot Hacks Applied . | . . . . . . . Relay Couplers Released . | . . . . . . . Fabnet Peak Effective % . | . . . . . . . Robots Rewired . | . . . . . . . Allies Hacked . | . . . . . . . Hacks Repelled . | . . . . . . . Allies | -11 -10 -10 -9 -8 -7 -7 -------- Run | Yrd Mat Min Mat Mat Fac Low Total Allies . | . . . . . . . Largest Group . | . . . . . . . Highest-Rated Group . | . . . . . . . Highest-Rated Ally . | . . . . . . . Total Orders . | . . . . . . . Ally Attacks . | . . . . . . . Total Damage . | . . . . . . . Kills . | . . . . . . . Allies Corrupted . | . . . . . . . Allies Melted . | . . . . . . . Intel | -11 -10 -10 -9 -8 -7 -7 ------- Run | Yrd Mat Min Mat Mat Fac Low Active Infowar (turns) 2211 | . 901 436 767 107 . . Structural 2211 | . 901 436 767 107 . . Robot Analysis Total 2 | . . . 1 . 1 . Derelict Logs Recovered 2 | . . 2 . . . . Drone Launches . | . . . . . . . Drone Recoveries . | . . . . . . . Exploration | -11 -10 -10 -9 -8 -7 -7 ------------- Run | Yrd Mat Min Mat Mat Fac Low Turns Passed 5520 | 238 924 463 772 879 2011 233 Spaces Moved 3442 | 160 604 307 456 534 1265 116 Core 10 | 8 . . . . 2 . Treads 15 | . . . . . 15 . Legs 2766 | 152 604 307 456 534 713 . Wheels . | . . . . . . . Hover 651 | . . . . . 535 116 Flight . | . . . . . . . Fastest Speed 50 | 50 120 120 120 120 52 52 Average Speed 118 | 116 120 124 120 122 113 127 Slowest Speed 600 | 120 120 190 190 190 600 240 Overloaded Moves . | . . . . . . . Propulsion Burnouts . | . . . . . . . Robots Hopped . | . . . . . . . Potential Cave-ins . | . . . . . . . Cave-ins Triggered . | . . . . . . . Exploration Rate (%) 37 | 9 77 52 37 35 32 17 Regions Visited 6 Branch Regions 2 Pre-discovered Areas 1 | . . 1 . . . . Known Exits Taken 3 | . . 1 1 1 . . Unknown Exits Taken 3 | 1 1 . . . 1 . Scrap Searched 3 | . . 1 . . . 2 Spaces Dug 1 | . . 1 . . . . Terrain Destroyed 107 | . 61 1 34 . 11 . Melee . | . . . . . . . Projectile 1 | . . 1 . . . . AOE 106 | . 61 . 34 . 11 . Terrain Rammed . | . . . . . . . Walls Destroyed . | . . . . . . . Machines Disabled . | . . . . . . . Actions | -11 -10 -10 -9 -8 -7 -7 --------- Run | Yrd Mat Min Mat Mat Fac Low Total 4408 | 187 740 364 597 684 1669 167 Wait 382 | 4 41 29 55 90 157 6 Move 3436 | 159 603 306 455 533 1264 116 Hop . | . . . . . . . Pick Up 57 | 6 18 1 6 5 21 . Fast Attach 39 | 6 2 . 5 2 23 1 Attach 33 | . 1 2 7 4 12 7 Detach 16 | . 1 1 2 . 9 3 Swap 46 | . 9 8 7 7 15 . Drop 69 | . 21 4 6 5 33 . Fire 261 | 12 43 12 54 38 89 13 Melee 64 | . . . . . 43 21 Ram . | . . . . . . . Kick 4 | . 1 1 . . 2 . Crush 1 | . . . . . 1 . Escape Stasis . | . . . . . . . Rewire . | . . . . . . . Trap . | . . . . . . . Miscellaneous . | . . . . . . . Route ------- -11/Scrapyard -10/Materials (discovered 3 exits: *Mat x2 / [*Min]) -10/Mines (discovered 3 exits: *Mat x2 / [*Sub]) -9/Materials (discovered 2 exits: *Mat / *Sto) -8/Materials -7/Factory -7/Lower Caves History --------- Turn | Location | Event 4 | -11/Scrapyard | Discovered new exit (range 15) 239 | -11/Scrapyard | Entered Materials 302 | -10/Materials | Build established: Mutant 503 | -10/Materials | Discovered new exit (range 12) 602 | -10/Materials | Discovered new exit (range 5) 833 | -10/Materials | Discovered new exit (range 4) 1163 | -10/Materials | Entered Mines 1163 | -10/Mines | Discovered new exit (range 9) 1390 | -10/Mines | Found a hidden stash of uninstalled traps 1396 | -10/Mines | Learned Materials terminal intel 1418 | -10/Mines | Discovered new exit (range 13) 1457 | -10/Mines | Learned location of Storage (-9) 1463 | -10/Mines | Discovered new exit (range 5) 1519 | -10/Mines | Assembled infested the area 1524 | -10/Mines | Assisted by a Guerilla fighting off Assembled 1611 | -10/Mines | Identified exit to Materials 1626 | -10/Mines | Entered Materials 1626 | -9/Materials | Evolved 2 slots: Propulsion x1, Utility x1 1627 | -9/Materials | Loaded intel: 11 terminal locations 1693 | -9/Materials | Discovered new exit (range 15) 1726 | -9/Materials | Identified exit to Storage 1978 | -9/Materials | Lost 5 parts (1p3n1w) 1997 | -9/Materials | Core integrity fell below 50% 2250 | -9/Materials | Build established: Scavenger-Mutant 2328 | -9/Materials | Discovered new exit (range 16) 2347 | -9/Materials | Identified exit to Materials 2398 | -9/Materials | Entered another Materials area 2398 | -8/Materials | Evolved 2 slots: Utility x2 3064 | -8/Materials | Repaired Aluminum Leg 3107 | -8/Materials | Discovered new exit (range 16) 3145 | -8/Materials | Identified exit to Factory 3277 | -8/Materials | Entered Factory 3277 | -7/Factory | Evolved 2 slots: Power x1, Utility x1 4012 | -7/Factory | Destroyed 7 combat bots 4019 | -7/Factory | Lost 3 parts (2n1u) 4573 | -7/Factory | Lost 3 parts (2n1w) 4815 | -7/Factory | Lost 3 parts (1p1u1w) 4917 | -7/Factory | Fabricated Gravmag System (x2) 5153 | -7/Factory | Discovered new exit (range 11) 5214 | -7/Factory | Build established: Mutant 5288 | -7/Factory | Entered Lower Caves 5302 | -7/Lower Caves | Core integrity fell below 50% 5346 | -7/Lower Caves | Lost 3 parts (1n2u) 5506 | -7/Lower Caves | Attacked by a faux Warlord 5511 | -7/Lower Caves | Core integrity fell below 20% 5521 | -7/Lower Caves | Destroyed by 1W-WEV(l) with Ripper Last Messages --------------- 05505_ YD-GI5(M): "I've never seen anything like that down here. It must be an Unaware spy!" 05506_ YD-GI5(M): "You are tresspassing on Warlord territory, MY territory! Guards, destroy it!" 05506_ Mic. Nuclear Core destroyed. 05509_ Microactuators severed. 05510_ Destroyed Imp. Deuterium Engine. 05510_ YB-JHV(l) system corrupted by crushing effect. 05510_ YB-JHV(l) knocked back. 05513_ YB-JHV(l) destroyed. 05515_ Destroyed Melee Analysis Suite. 05515_ 1W-WEV(l) system corrupted by crushing effect. 05519_ X0-ATF(g) misfires. 05520_ System Restoration Module destroyed. 05520_ Imp. Melee Analysis Suite destroyed. 05520_ Critical hit (Blast). 05520_ Med. Storage Unit destroyed. Map ----- +----------------------------------------------------+ | ?????????????????????????????????????????????????? | | ?????????????????????????????????????????????????? | | ?????????????????????????????????????????????????? | | ?????????????????????????????????????????????????? | | ?????????????????????????????????????????????????? | | ?????????????????????????????????????????????????? | | ?????????????????????????????????????????????????? | | ?????????????????????????????????????????????????? | | ?????????????????????????????????????????????????? | | ?????????????????????????????????????????????????? | | ??????????????????????????????? ????????????????? | | ??????????????????????????????? ????????????????? | | ?????????????????? ???????????? ????????????????? | | ???????????????? ??????????? ????????????????? | | ?????????????? ?????????? ????????????????? | | ?????????????? ?????????? ????????????????? | | ????????????? ????????# ????????????????? | | ????????????? ???????? ????????????????? | | ????????????# ??????? #????? ####????? | | ????????????? ???????# #???? #????? | | ??????????????? #??????# #???? ?????? | | ????????????????? #????## #????# ??????? | | ??????????????????? ????? #???## #?????### | | ????????????????????# ?????# #???# #?????## | | ????????????????????# Mg%##???# ##### #??????# | | ?????????????????????# !l@##### ######## | | ?????????????????????# %/%% ## ### | | ?????????????????????####### ### | | ?????????????????????????# #??# | | ???????????????????????# ## ##?## | | ??????????????????????# ##### #### | | ?????????????????????# #??### | | ?????????????????????# ??## | | ?????????????????????## #??# | | ??????????????????????####???# ###### ### | | ?????????????????????????????####????#####?####### | | ?????????????????????????????????????????????????? | | ?????????????????????????????????????????????????? | | ?????????????????????????????????????????????????? | | ?????????????????????????????????????????????????? | | ?????????????????????????????????????????????????? | | ?????????????????????????????????????????????????? | | ?????????????????????????????????????????????????? | | ?????????????????????????????????????????????????? | | ?????????????????????????????????????????????????? | | ?????????????????????????????????????????????????? | | ?????????????????????????????????????????????????? | | ?????????????????????????????????????????????????? | | ?????????????????????????????????????????????????? | | ?????????????????????????????????????????????????? | +----------------------------------------------------+ Best States ------------- Heat Dissipation 48 Energy Generation 26 Energy Capacity 350 Matter Stores 300 Matter Capacity 300 Sight Range 16 Terrain Scan Density 10 Armor Coverage 300 Propulsion Shielding 66 Melee Speed Boost 20 Evasion (%) 62 Targeting Accuracy 5 Melee Accuracy 6 Core Analysis 6 Recoil Reduction 1 Item Schematics ----------------- Gravmag System | -7/Factory | Scanalyzed Robot Schematics ------------------ None Fabricated ------------ Gravmag System | x2 | -7/Factory Repaired ---------- Aluminum Leg | 13% | -8/Materials Studied --------- Aluminum Leg | -7/Factory | Hacked Alien Tech Used ----------------- None Achievements -------------- DATA ERROR: Steam Global Achievement% For Emergencies Only Item+ Organ Harvest Overwhelming That Tickles There's More Where That Came From Challenges ------------ None Game ------ Seed CannonNanofilamentsParser Manual? 0 Play Time 01:06:09 Cumulative 35.4 hours Start 2025.10.24 @ 12:53:19 End 2025.10.24 @ 14:01:53 Sessions 1 Manual Loads 0 Difficulty Rogue Special Mode None Game No. 27 Rogue 27 Adventurer 0 Explorer 0 Win Type - Total 0 Types 0/0/0/0/0/0/0/0/0/0 Lore% 18 Gallery% 28 Achievement% 18 Wizard Run 0 Options --------- Layout 1 ASCII 0 Keyboard 1 Movement Numpad Keybinds 0 Fullscreen 1 Font 48/Smallcaps Map View 50x35 Zoom Use 2% Tactical HUD 1 Map Filters NONE Filters NONE Steam 1 RUN: 789f96d3-e3db-4535-a1cb-04cd54ac530c